fUSD/lending_fUSD_20241001
["ID","MTS","AMOUNT","RATE_DAILY","PERIOD"]
[339664419,1727820719312,-500.0,0.0003863,120]
[339664420,1727820719322,-500.0,0.0003863,120]
[339664421,1727820719331,-2229.65,0.0003863,120]
[339664422,1727820719340,-3120.18,0.0003863,120]
[339664423,1727820719349,-500.0,0.0003863,120]
[339664424,1727820719359,-500.0,0.0003863,120]
[339664425,1727820719368,-2562.34,0.0003863,120]
[339664426,1727820719378,-500.0,0.0003863,120]
[339664427,1727820719388,-561.48,0.0003863,120]
[339664428,1727820719397,-1720.36,0.0003863,120]
[339664429,1727820719408,-500.0,0.0003863,120]
[339664430,1727820719417,-1264.36,0.0003863,120]
[339664431,1727820719426,-500.0,0.0003863,120]
[339664432,1727820719435,-500.0,0.0003863,120]
[339664433,1727820719445,-1401.84,0.0003863,120]
[339664434,1727820719454,-500.0,0.0003863,120]
[339664435,1727820719464,-500.0,0.0003863,120]
[339664436,1727820719473,-541.62,0.0003863,120]
[339664437,1727820719482,-1202.32,0.0003863,120]
[339664438,1727820719492,-500.0,0.0003863,120]
[339664439,1727820719502,-500.0,0.0003863,120]
[339664440,1727820719512,-500.0,0.0003863,120]
[339664441,1727820719521,-500.0,0.0003863,120]
[339664442,1727820719530,-1869.79,0.0003863,120]
[339664443,1727820719540,-683.16,0.0003863,120]
[339664444,1727820719549,-500.0,0.0003863,120]
[339664445,1727820719559,-547.35,0.0003863,120]
[339664446,1727820719568,-1021.95,0.0003863,120]
[339664447,1727820719577,-500.0,0.0003863,120]
[339664448,1727820719586,-1116.83,0.0003863,120]
[339664449,1727820719596,-1310.69,0.0003863,120]
[339664450,1727820719605,-314.30945731,0.0003863,120]
[339664451,1727820719615,-1082.8,0.0003863,120]
[339664452,1727820719624,-537.73,0.0003863,120]
[339664453,1727820719637,-500.0,0.0003863,120]
[339664454,1727820719646,-1224.9,0.0003863,120]
[339664455,1727820719655,-500.0,0.0003863,120]
[339664456,1727820719665,-500.0,0.0003863,120]
[339664457,1727820719675,-208.59159849,0.0003863,120]
[339664458,1727820719684,-500.0,0.0003863,120]
[339664459,1727820719694,-500.0,0.0003863,120]
[339664460,1727820719704,-500.0,0.0003863,120]
[339664461,1727820719714,-500.0,0.0003863,120]
[339664462,1727820719725,-1286.67,0.0003863,120]
[339664463,1727820719734,-657.58,0.0003863,120]
[339664464,1727820719743,-500.0,0.0003863,120]
[339664465,1727820719753,-500.0,0.0003863,120]
[339664466,1727820719762,-536.12978524,0.0003863,120]
[339664467,1727820719772,-500.0,0.0003863,120]
[339664468,1727820719781,-1073.31,0.0003863,120]
[339664469,1727820719792,-541.92,0.0003863,120]
[339664470,1727820719804,-2339.06,0.0003863,120]
[339664471,1727820719814,-744.91,0.0003863,120]
[339664472,1727820719824,-817.84,0.0003863,120]
[339664473,1727820719833,-500.0,0.0003863,120]
[339664474,1727820719842,-2599.93,0.0003863,120]
[339664475,1727820719851,-500.0,0.0003863,120]
[339664476,1727820719861,-1750.82,0.0003863,120]
[339664477,1727820719870,-579.27,0.0003863,120]
[339664478,1727820719879,-500.0,0.0003863,120]
[339664479,1727820719889,-500.0,0.0003863,120]
[339664480,1727820719900,-908.91,0.0003863,120]
[339664481,1727820719909,-500.0,0.0003863,120]
[339664482,1727820719918,-1921.1,0.0003863,120]
[339664483,1727820719927,-500.0,0.0003863,120]
[339664484,1727820719937,-1558.18,0.0003863,120]
[339664485,1727820719948,-517.15,0.0003863,120]
[339664486,1727820719957,-559.26,0.0003863,120]
[339664487,1727820719968,-742.38,0.0003863,120]
[339664488,1727820719978,-500.0,0.0003863,120]
[339664489,1727820719987,-1507.58,0.0003863,120]
[339664490,1727820719998,-500.0,0.0003863,120]
[339664491,1727820720014,-500.0,0.0003863,120]
[339664492,1727820720023,-500.0,0.0003863,120]
[339664493,1727820720032,-1812.22,0.0003863,120]
[339664494,1727820720042,-500.0,0.0003863,120]
[339664495,1727820720051,-865.43,0.0003863,120]
[339664496,1727820720061,-912.77,0.0003863,120]
[339664497,1727820720070,-503.29,0.0003863,120]
[339664498,1727820720079,-500.0,0.0003863,120]
[339664499,1727820720088,-538.32,0.0003863,120]
[339664500,1727820720097,-1232.27,0.0003863,120]
[339664501,1727820720106,-500.0,0.0003863,120]
[339664502,1727820720116,-727.23,0.0003863,120]
[339664503,1727820720126,-500.0,0.0003863,120]
[339664504,1727820720135,-612.63,0.0003863,120]
[339664505,1727820720144,-500.0,0.0003863,120]
[339664506,1727820720154,-500.0,0.0003863,120]
[339664507,1727820720165,-2434.31,0.0003863,120]
[339664508,1727820720175,-1123.1,0.0003863,120]
[339664509,1727820720185,-500.0,0.0003863,120]
[339664510,1727820720194,-20000.0,0.0003863,2]
[339664511,1727820720204,-609.21,0.0003863,120]
[339664512,1727820720213,-500.0,0.0003863,120]
[339664513,1727820720222,-578.82127099,0.0003863,120]
[339664514,1727820720232,-726.12,0.0003863,120]
[339664515,1727820720241,-639.42,0.0003863,120]
[339664516,1727820720251,-500.0,0.0003863,120]
[339664517,1727820720261,-909.97,0.0003863,120]
[339664518,1727820720270,-500.0,0.0003863,120]
[339664519,1727820720280,-1769.05,0.0003863,120]
[339664520,1727820720289,-2645.4,0.0003863,120]
[339664521,1727820720299,-500.0,0.0003863,120]
[339664522,1727820720308,-500.0,0.0003863,120]
[339664523,1727820720318,-719.11,0.0003863,120]
[339664524,1727820720327,-908.05,0.0003863,120]
[339664525,1727820720336,-500.0,0.0003863,120]
[339664526,1727820720345,-500.0,0.0003863,120]
[339664527,1727820720355,-500.0,0.0003863,120]
[339664528,1727820720364,-500.0,0.0003863,120]
[339664529,1727820720373,-500.0,0.0003863,120]
[339664530,1727820720382,-500.0,0.0003863,120]
[339664531,1727820720392,-1353.18,0.0003863,120]
[339664532,1727820720401,-1681.46,0.0003863,120]
[339664533,1727820720410,-500.0,0.0003863,120]
[339664534,1727820720420,-500.0,0.0003863,120]
[339664535,1727820720429,-574.63,0.0003863,120]
[339664536,1727820720438,-1427.27,0.0003863,120]
[339664537,1727820720447,-1194.08,0.0003863,120]
[339664538,1727820720456,-1852.67,0.0003863,120]
[339664539,1727820720465,-500.0,0.0003863,120]
[339664540,1727820720475,-572.51958301,0.0003863,120]
[339664541,1727820720484,-1271.22,0.0003863,120]
[339664542,1727820720493,-578.88,0.0003863,120]
[339664543,1727820720503,-1006.55,0.0003863,120]
[339664544,1727820720513,-500.0,0.0003863,120]
[339664545,1727820720523,-1067.38,0.0003863,120]
[339664546,1727820720533,-500.0,0.0003863,120]
[339664547,1727820720543,-2065.44,0.0003863,120]
[339664548,1727820720552,-500.0,0.0003863,120]
[339664549,1727820720561,-997.79,0.0003863,120]
[339664550,1727820720570,-676.91,0.0003863,120]
[339664551,1727820720580,-500.0,0.0003863,120]
[339664552,1727820720590,-500.0,0.0003863,120]
[339664553,1727820720599,-500.0,0.0003863,120]
[339664554,1727820720609,-500.0,0.0003863,120]
[339664555,1727820720619,-500.0,0.0003863,120]
[339664556,1727820720629,-500.0,0.0003863,120]
[339664557,1727820720640,-500.0,0.0003863,120]
[339664558,1727820720650,-500.0,0.0003863,120]
[339664559,1727820720659,-1299.08,0.0003863,120]
[339664560,1727820720670,-7133.94,0.0003863,120]
[339664561,1727820720680,-2948.18,0.0003863,120]
[339664562,1727820720689,-876.55,0.0003863,120]
[339664563,1727820720698,-500.0,0.0003863,120]
[339664564,1727820720709,-500.0,0.0003863,120]
[339664565,1727820720719,-500.0,0.0003863,120]
[339664566,1727820720730,-1297.59,0.0003863,120]
[339664567,1727820720739,-500.0,0.0003863,120]
[339664568,1727820720748,-500.0,0.0003863,120]
[339664569,1727820720759,-500.0,0.0003863,120]
[339664570,1727820720768,-500.0,0.0003863,120]
[339664571,1727820720778,-3085.28,0.0003863,120]
[339664572,1727820720787,-1540.7,0.0003863,120]
[339664573,1727820720797,-835.52,0.0003863,120]
[339664574,1727820720806,-1360.6,0.0003863,120]
[339664575,1727820720816,-2073.43,0.0003863,120]
[339664576,1727820720825,-920.24,0.0003863,120]
[339664577,1727820720834,-191.05729302,0.0003863,120]
[339664578,1727820720843,-500.0,0.0003863,120]
[339664579,1727820720853,-500.0,0.0003863,120]
[339664580,1727820720862,-500.0,0.0003863,120]
[339664581,1727820720871,-500.0,0.0003863,120]
[339664582,1727820720880,-500.0,0.0003863,120]
[339664583,1727820720890,-1196.56,0.0003863,120]
[339664584,1727820720899,-500.0,0.0003863,120]
[339664585,1727820720909,-1565.97,0.0003863,7]
[339664586,1727820720918,-682.18,0.0003863,120]
[339664587,1727820720927,-2161.41,0.0003863,120]
[339664588,1727820720936,-500.0,0.0003863,120]
[339664589,1727820720945,-500.0,0.0003863,120]
[339664590,1727820721053,-984.06,0.0003863,120]
[339664591,1727820721062,-893.82,0.0003863,120]
[339664592,1727820721071,-614.76,0.0003863,120]
[339664593,1727820721081,-500.0,0.0003863,120]
[339664594,1727820721090,-4017.33,0.0003863,120]
[339664595,1727820721099,-556.32,0.0003863,120]
[339664596,1727820721108,-1530.83,0.0003863,120]
[339664597,1727820721117,-500.0,0.0003863,120]
[339664598,1727820721126,-500.0,0.0003863,120]
[339664599,1727820721135,-500.0,0.0003863,120]
[339664600,1727820721144,-2813.32,0.0003863,120]
[339664601,1727820721153,-500.0,0.0003863,120]
[339664602,1727820721163,-989.03,0.0003863,120]
[339664603,1727820721172,-1381.53,0.0003863,120]
[339664604,1727820721181,-267.42440993,0.0003863,120]
[339664605,1727820721190,-500.0,0.0003863,120]
[339664606,1727820721199,-500.0,0.0003863,120]
[339664607,1727820721209,-625.33,0.0003863,120]
[339664608,1727820721218,-500.0,0.0003863,120]
[339664609,1727820721227,-500.0,0.0003863,120]
[339664610,1727820721236,-3207.82,0.0003863,120]
[339664611,1727820721245,-529.0,0.0003863,120]
[339664612,1727820721254,-500.0,0.0003863,120]
[339664613,1727820721263,-1336.39,0.0003863,120]
[339664614,1727820721273,-500.0,0.0003863,120]
[339664615,1727820721282,-1417.06,0.0003863,120]
[339664616,1727820721291,-500.0,0.0003863,120]
[339664617,1727820721300,-691.8,0.0003863,120]
[339664618,1727820721311,-829.5,0.0003863,120]
[339664619,1727820721320,-1750.69,0.0003863,120]
[339664620,1727820721330,-1683.2,0.0003863,120]
[339664621,1727820721339,-518.37,0.0003863,120]
[339664622,1727820721348,-500.0,0.0003863,120]
[339664623,1727820721357,-500.0,0.0003863,120]
[339664624,1727820721366,-500.0,0.0003863,120]
[339664625,1727820721375,-500.0,0.0003863,120]
[339664626,1727820721385,-565.37,0.0003863,120]
[339664627,1727820721394,-1040.53,0.0003863,120]
[339664628,1727820721403,-500.0,0.0003863,120]
[339664629,1727820721412,-500.0,0.0003863,120]
[339664630,1727820721421,-500.0,0.0003863,120]
[339664631,1727820721431,-2903.08,0.0003863,120]
[339664632,1727820721440,-500.0,0.0003863,120]
[339664633,1727820721448,-1019.42,0.0003863,120]
[339664634,1727820721457,-500.0,0.0003863,120]
[339664635,1727820721466,-500.0,0.0003863,120]
[339664636,1727820721475,-685.88,0.0003863,120]
[339664637,1727820721485,-3679.16,0.0003863,120]
[339664638,1727820721494,-1591.74,0.0003863,120]
[339664639,1727820721504,-500.0,0.0003863,120]
[339664640,1727820721513,-509.48,0.0003863,120]
[339664641,1727820721523,-500.0,0.0003863,120]
[339664642,1727820721532,-931.69,0.0003863,120]
[339664643,1727820721541,-500.0,0.0003863,120]
[339664644,1727820721551,-500.0,0.0003863,120]
[339664645,1727820721560,-846.41,0.0003863,120]
[339664646,1727820721570,-500.0,0.0003863,120]
[339664647,1727820721579,-500.0,0.0003863,120]
[339664648,1727820721588,-500.0,0.0003863,120]
[339664649,1727820721597,-579.38,0.0003863,120]
[339664650,1727820721607,-500.0,0.0003863,120]
[339664651,1727820721616,-500.0,0.0003863,120]
[339664652,1727820721625,-500.0,0.0003863,120]
[339664653,1727820721637,-500.0,0.0003863,120]
[339664654,1727820721646,-658.41,0.0003863,120]
[339664655,1727820721656,-938.76,0.0003863,120]
[339664656,1727820721665,-388.94204421,0.0003863,120]
[339664657,1727820721675,-500.0,0.0003863,120]
[339664658,1727820721684,-500.0,0.0003863,120]
[339664659,1727820721693,-500.0,0.0003863,120]
[339664660,1727820721703,-500.0,0.0003863,120]
[339664661,1727820721712,-633.77,0.0003863,120]
[339664662,1727820721721,-1178.43,0.0003863,120]
[339664663,1727820721730,-631.01,0.0003863,120]
[339664664,1727820721740,-4318.07,0.0003863,120]
[339664665,1727820721749,-500.0,0.0003863,120]
[339664666,1727820721761,-500.0,0.0003863,120]
[339664667,1727820721770,-500.0,0.0003863,120]
[339664668,1727820721780,-1300.84,0.0003863,120]
[339664669,1727820721789,-1477.24,0.0003863,120]
[339664670,1727820721798,-649.66,0.0003863,120]
[339664671,1727820721807,-3571.84,0.0003863,24]
[339664672,1727820721817,-790.35,0.0003863,120]
[339664673,1727820721826,-500.0,0.0003863,120]
[339664674,1727820721836,-500.0,0.0003863,120]
[339664675,1727820721845,-500.0,0.0003863,120]
[339664676,1727820721854,-500.0,0.0003863,120]
[339664677,1727820721864,-500.0,0.0003863,120]
[339664678,1727820721874,-2269.39,0.0003863,120]
[339664679,1727820721884,-509.05,0.0003863,120]
[339664680,1727820721893,-906.26,0.0003863,120]
[339664681,1727820721902,-950.35,0.0003863,14]
[339664682,1727820721911,-695.43,0.0003863,120]
[339664683,1727820721920,-500.0,0.0003863,120]
[339664684,1727820721929,-500.0,0.0003863,120]
[339664685,1727820721939,-500.0,0.0003863,120]
[339664686,1727820721948,-5863.43,0.0003863,120]
[339664687,1727820721956,-500.0,0.0003863,120]
[339664688,1727820721966,-1343.7,0.0003863,120]
[339664689,1727820721975,-500.0,0.0003863,120]
[339664690,1727820721984,-500.0,0.0003863,120]
[339664691,1727820721993,-500.0,0.0003863,120]
[339664692,1727820722004,-500.0,0.0003863,120]
[339664693,1727820722013,-500.0,0.0003863,120]
[339664694,1727820722022,-500.0,0.0003863,2]
[339664695,1727820722031,-1433.18,0.0003863,120]
[339664696,1727820722040,-500.0,0.0003863,120]
[339664697,1727820722049,-500.0,0.0003863,120]
[339664698,1727820722058,-2031.89,0.0003863,120]
[339664699,1727820722067,-2892.65,0.0003863,120]
[339664700,1727820722076,-558.87,0.0003863,120]
[339664701,1727820722085,-1519.54,0.0003863,120]
[339664702,1727820722094,-500.0,0.0003863,120]
[339664703,1727820722103,-500.0,0.0003863,120]
[339664704,1727820722113,-5052.98,0.0003863,120]
[339664705,1727820722122,-308.83834976,0.0003863,120]
[339664706,1727820722131,-2464.24,0.0003863,120]
[339664707,1727820722141,-2055.41,0.0003863,120]
[339664708,1727820722150,-500.0,0.0003863,120]
[339664709,1727820722159,-642.05,0.0003863,120]
[339664710,1727820722168,-598.73,0.0003863,120]
[339664711,1727820722177,-581.71,0.0003863,120]
[339664712,1727820722187,-1855.45,0.0003863,120]
[339664713,1727820722196,-1193.22,0.0003863,120]
[339664714,1727820722205,-500.0,0.0003863,120]
[339664715,1727820722214,-500.0,0.0003863,120]
[339664716,1727820722223,-500.0,0.0003863,120]
[339664717,1727820722232,-750.15,0.0003863,120]
[339664718,1727820722241,-2691.72,0.0003863,120]
[339664719,1727820722252,-500.0,0.0003863,120]
[339664720,1727820722261,-500.0,0.0003863,120]
[339664721,1727820722270,-500.0,0.0003863,120]
[339664722,1727820722279,-548.81,0.0003863,120]
[339664723,1727820722288,-500.63962201,0.0003863,30]
[339664724,1727820722297,-6652.18,0.0003863,120]
[339664725,1727820722306,-513.2,0.0003863,120]
[339664726,1727820722316,-500.0,0.0003863,120]
[339664727,1727820722326,-500.0,0.0003863,120]
[339664728,1727820722335,-1189.34,0.0003863,120]
[339664729,1727820722345,-500.0,0.0003863,120]
[339664730,1727820722354,-4738.33,0.0003863,120]
[339664731,1727820722363,-806.35,0.0003863,120]
[339664732,1727820722372,-500.0,0.0003863,120]
[339664733,1727820722381,-500.0,0.0003863,120]
[339664734,1727820722390,-500.0,0.0003863,120]
[339664735,1727820722401,-917.73,0.0003863,120]
[339664736,1727820722410,-500.0,0.0003863,120]
[339664737,1727820722420,-500.0,0.0003863,120]
[339664738,1727820722429,-500.0,0.0003863,120]
[339664739,1727820722439,-533.87,0.0003863,120]
[339664740,1727820722449,-500.0,0.0003863,120]
[339664741,1727820722458,-500.0,0.0003863,120]
[339664742,1727820722468,-945.7,0.0003863,120]
[339664743,1727820722477,-5194.61,0.0003863,120]
[339664744,1727820722487,-500.0,0.0003863,120]
[339664745,1727820722496,-500.0,0.0003863,120]
[339664746,1727820722507,-1116.02,0.0003863,120]
[339664747,1727820722516,-832.73,0.0003863,120]
[339664748,1727820722526,-559.81414797,0.0003863,120]
[339664749,1727820722535,-500.0,0.0003863,120]
[339664750,1727820722544,-500.0,0.0003863,120]
[339664751,1727820722553,-2703.66,0.0003863,120]
[339664752,1727820722563,-500.0,0.0003863,120]
[339664753,1727820722572,-500.0,0.0003863,120]
[339664754,1727820722582,-902.25,0.0003863,120]
[339664755,1727820722591,-507.76174224,0.0003863,120]
[339664756,1727820722601,-1320.9,0.0003863,120]
[339664757,1727820722610,-500.0,0.0003863,120]
[339664758,1727820722620,-659.17,0.0003863,120]
[339664759,1727820722629,-2578.82,0.0003863,120]
[339664760,1727820722643,-1704.81,0.0003863,120]
[339664761,1727820722652,-500.0,0.0003863,120]
[339664762,1727820722661,-500.0,0.0003863,120]
[339664763,1727820722670,-1586.77,0.0003863,120]
[339664764,1727820722680,-1388.49,0.0003863,120]
[339664765,1727820722689,-834.76,0.0003863,120]
[339664766,1727820722698,-500.0,0.0003863,120]
[339664767,1727820722708,-500.0,0.0003863,120]
[339664768,1727820722717,-944.31,0.0003863,120]
[339664769,1727820722726,-500.0,0.0003863,120]
[339664770,1727820722736,-500.0,0.0003863,120]
[339664771,1727820722745,-500.0,0.0003863,120]
[339664772,1727820722755,-500.0,0.0003863,120]
[339664773,1727820722765,-500.0,0.0003863,120]
[339664774,1727820722774,-500.0,0.0003863,120]
[339664775,1727820722784,-793.38,0.0003863,120]
[339664776,1727820722793,-500.0,0.0003863,120]
[339664777,1727820722802,-500.0,0.0003863,120]
[339664778,1727820722811,-500.0,0.0003863,120]
[339664779,1727820722821,-1639.8,0.0003863,120]
[339664780,1727820722830,-2627.22,0.0003863,120]
[339664781,1727820722839,-3122.29,0.0003863,120]
[339664782,1727820722848,-500.0,0.0003863,120]
[339664783,1727820722857,-725.25,0.0003863,120]
[339664784,1727820722867,-1519.29,0.0003863,120]
[339664785,1727820722876,-500.0,0.0003863,120]
[339664786,1727820722885,-500.0,0.0003863,120]
[339664787,1727820722894,-2668.85,0.0003863,120]
[339664788,1727820722904,-5376.69,0.0003863,120]
[339664789,1727820722913,-957.13,0.0003863,120]
[339664790,1727820722922,-500.0,0.0003863,120]
[339664791,1727820722931,-500.0,0.0003863,120]
[339664792,1727820722941,-742.86,0.0003863,120]
[339664793,1727820722950,-3167.05,0.0003863,120]
[339664794,1727820722959,-500.0,0.0003863,120]
[339664795,1727820722968,-500.0,0.0003863,120]
[339664796,1727820722977,-842.39,0.0003863,120]
[339664797,1727820722986,-1188.41,0.0003863,120]
[339664798,1727820722995,-1000.0,0.0003863,120]
[339664799,1727820723005,-500.0,0.0003863,120]
[339664800,1727820723014,-977.8,0.0003863,120]
[339664801,1727820723023,-1574.81,0.0003863,120]
[339664802,1727820723033,-500.0,0.0003863,120]
[339664803,1727820723042,-592.48,0.0003863,120]
[339664804,1727820723051,-835.75,0.0003863,120]
[339664805,1727820723061,-500.0,0.0003863,120]
[339664806,1727820723070,-500.0,0.0003863,120]
[339664807,1727820723079,-500.0,0.0003863,120]
[339664808,1727820723088,-1628.64,0.0003863,120]
[339664809,1727820723098,-767.06,0.0003863,120]
[339664810,1727820723107,-500.0,0.0003863,120]
[339664811,1727820723116,-500.0,0.0003863,120]
[339664812,1727820723126,-1332.74,0.0003863,120]
[339664813,1727820723134,-500.0,0.0003863,120]
[339664814,1727820723144,-891.92,0.0003863,120]
[339664815,1727820723153,-879.96,0.0003863,120]
[339664816,1727820723163,-870.15,0.0003863,120]
[339664817,1727820723172,-500.0,0.0003863,120]
[339664818,1727820723181,-3053.04,0.0003863,120]
[339664819,1727820723191,-500.0,0.0003863,120]
[339664820,1727820723200,-500.0,0.0003863,120]
[339664821,1727820723210,-500.0,0.0003863,120]
[339664822,1727820723219,-500.0,0.0003863,120]
[339664823,1727820723228,-500.0,0.0003863,120]
[339664824,1727820723238,-1765.25,0.0003863,120]
[339664825,1727820723247,-500.0,0.0003863,120]
[339664826,1727820723258,-2848.92,0.0003863,120]
[339664827,1727820723268,-500.0,0.0003863,120]
[339664828,1727820723277,-2618.25,0.0003863,120]
[339664829,1727820723287,-922.35,0.0003863,2]
[339664830,1727820723296,-733.76,0.0003863,120]
[339664831,1727820723305,-500.0,0.0003863,120]
[339664832,1727820723315,-1452.8,0.0003863,120]
[339664833,1727820723325,-745.69,0.0003863,120]
[339664834,1727820723334,-515.59,0.0003863,120]
[339664835,1727820723344,-504.12,0.0003863,120]
[339664836,1727820723354,-500.0,0.0003863,30]
[339664837,1727820723364,-748.91,0.0003863,30]
[339664838,1727820723373,-5228.9,0.0003863,120]
[339664839,1727820723383,-500.0,0.0003863,120]
[339664840,1727820723393,-500.0,0.0003863,120]
[339664841,1727820723402,-1099.12,0.0003863,120]
[339664842,1727820723412,-500.0,0.0003863,120]
[339664843,1727820723422,-925.91,0.0003863,120]
[339664844,1727820723431,-3838.42,0.0003863,120]
[339664845,1727820723440,-500.0,0.0003863,120]
[339664846,1727820723450,-983.15,0.0003863,120]
[339664847,1727820723459,-562.84,0.0003863,120]
[339664848,1727820723468,-585.77,0.0003863,120]
[339664849,1727820723478,-930.9,0.0003863,120]
[339664850,1727820723488,-500.0,0.0003863,120]
[339664851,1727820723498,-500.0,0.0003863,120]
[339664852,1727820723510,-500.0,0.0003863,120]
[339664853,1727820723520,-1347.98,0.0003863,120]
[339664854,1727820723530,-2842.0,0.0003863,120]
[339664855,1727820723540,-500.0,0.0003863,120]
[339664856,1727820723550,-2740.56,0.0003863,120]
[339664857,1727820723560,-1496.77,0.0003863,15]
[339664858,1727820723570,-500.0,0.0003863,120]
[339664859,1727820723580,-500.0,0.0003863,120]
[339664860,1727820723589,-500.0,0.0003863,120]
[339664861,1727820723599,-1862.99,0.0003863,120]
[339664862,1727820723609,-678.65,0.0003863,120]
[339664863,1727820723619,-1682.2,0.0003863,120]
[339664864,1727820723628,-1067.94,0.0003863,120]
[339664865,1727820723641,-500.0,0.0003863,120]
[339664866,1727820723650,-871.43,0.0003863,120]
[339664867,1727820723660,-500.0,0.0003863,120]
[339664868,1727820723670,-500.0,0.0003863,120]
[339664869,1727820723679,-625.16,0.0003863,120]
[339664870,1727820723689,-1476.53,0.0003863,120]
[339664871,1727820723698,-500.0,0.0003863,120]
[339664872,1727820723708,-500.0,0.0003863,120]
[339664873,1727820723720,-1931.66,0.0003863,120]
[339664874,1727820723731,-1349.45,0.0003863,120]
[339664875,1727820723741,-1300.41,0.0003863,120]
[339664876,1727820723751,-500.0,0.0003863,120]
[339664877,1727820723769,-3574.07,0.0003863,120]
[339664878,1727820723779,-500.0,0.0003863,120]
[339664879,1727820723790,-920.76,0.0003863,120]
[339664880,1727820723800,-3172.4,0.0003863,120]
[339664881,1727820723811,-500.0,0.0003863,120]
[339664882,1727820723821,-1193.1,0.0003863,120]
[339664883,1727820723832,-500.0,0.0003863,120]
[339664884,1727820723842,-500.0,0.0003863,120]
[339664885,1727820723853,-1359.38,0.0003863,120]
[339664886,1727820723864,-515.16763805,0.0003863,120]
[339664887,1727820723873,-500.0,0.0003863,120]
[339664888,1727820723883,-500.0,0.0003863,120]
[339664889,1727820723893,-1219.73,0.0003863,120]
[339664890,1727820723903,-983.64,0.0003863,120]
[339664891,1727820723913,-1226.11,0.0003863,120]
[339664892,1727820723923,-856.28,0.0003863,120]
[339664893,1727820723932,-5292.68,0.0003863,120]
[339664894,1727820723942,-3907.21,0.0003863,120]
[339664895,1727820723952,-2101.16,0.0003863,120]
[339664896,1727820723961,-500.0,0.0003863,120]
[339664897,1727820723971,-663.63,0.0003863,120]
[339664898,1727820723981,-2234.39,0.0003863,120]
[339664899,1727820723991,-500.0,0.0003863,120]
[339664900,1727820724000,-500.0,0.0003863,120]
[339664901,1727820724016,-500.0,0.0003863,120]
[339664902,1727820724026,-1469.82,0.0003863,120]
[339664903,1727820724036,-500.0,0.0003863,120]
[339664904,1727820724045,-287.66678109,0.0003863,120]
[339664905,1727820724055,-543.90365796,0.0003863,120]
[339664906,1727820724064,-500.0,0.0003863,120]
[339664907,1727820724073,-1070.08,0.0003863,120]
[339664908,1727820724083,-216.76288683,0.0003863,120]
[339664909,1727820724092,-500.0,0.0003863,120]
[339664910,1727820724102,-500.0,0.0003863,120]
[339664911,1727820724112,-500.0,0.0003863,120]
[339664912,1727820724121,-500.0,0.0003863,120]
[339664913,1727820724131,-1923.04,0.0003863,120]
[339664914,1727820724140,-857.77,0.0003863,120]
[339664915,1727820724150,-2261.0,0.0003863,120]
[339664916,1727820724159,-500.0,0.0003863,120]
[339664917,1727820724167,-1062.38,0.0003863,120]
[339664918,1727820724177,-500.0,0.0003863,120]